fUST/lending_fUST_20250128
["ID","MTS","AMOUNT","RATE_DAILY","PERIOD"]
[350650691,1738025444113,-368.39428436,0.00016438,2]
[350650692,1738025444122,-500.0,0.00016438,2]
[350650693,1738025444132,-500.0,0.00016438,2]
[350650694,1738025444141,-412.76,0.00016438,2]
[350650695,1738025444151,-500.0,0.00016438,2]
[350650696,1738025444160,-500.0,0.00016438,2]
[350650697,1738025444169,-500.0,0.00016438,2]
[350650698,1738025444178,-500.0,0.00016438,2]
[350650699,1738025444187,-500.0,0.00016438,2]
[350650700,1738025444197,-500.0,0.00016438,2]
[350650701,1738025444205,-500.0,0.00016438,2]
[350650702,1738025444215,-500.0,0.00016438,2]
[350650703,1738025444224,-500.0,0.00016438,2]
[350650704,1738025444232,-500.0,0.00016438,2]
[350650705,1738025444241,-1102.13,0.00016438,2]
[350650706,1738025444250,-500.0,0.00016438,2]
[350650707,1738025444259,-500.0,0.00016438,2]
[350650708,1738025444268,-500.0,0.00016438,2]
[350650709,1738025444277,-500.0,0.00016438,2]
[350650710,1738025444286,-500.0,0.00016438,2]
[350650711,1738025444298,-500.0,0.00016438,2]
[350650712,1738025444307,-500.0,0.00016438,2]
[350650713,1738025444316,-500.0,0.00016438,2]
[350650714,1738025444325,-547.68,0.00016438,2]
[350650715,1738025444334,-500.0,0.00016438,2]
[350650716,1738025444343,-500.0,0.00016438,2]
[350650717,1738025444352,-514.00490056,0.00016438,2]
[350650718,1738025444360,-500.0,0.00016438,2]
[350650719,1738025444369,-500.0,0.00016438,2]
[350650720,1738025444379,-500.0,0.00016438,2]
[350650721,1738025444387,-262.11271105,0.00016574,2]
[350650722,1738025444397,-358.95899461,0.00016574,2]
[350650723,1738025444405,-500.0,0.00016575,2]
[350650724,1738025444414,-500.0,0.00016575,2]
[350650725,1738025444424,-567.27,0.00016575,2]
[350650726,1738025444433,-240.75,0.00016575,2]
[350650727,1738025444442,-394.1548276,0.00016575,2]
[350650728,1738025444451,-500.0,0.00016575,2]
[350650729,1738025444461,-500.0,0.00016575,2]
[350650730,1738025444470,-500.0,0.00016575,2]
[350650731,1738025444479,-500.0,0.00016575,2]
[350650732,1738025444488,-500.0,0.00016575,2]
[350650733,1738025444497,-500.0,0.00016575,2]
[350650734,1738025444506,-500.0,0.00016575,2]
[350650735,1738025444515,-500.0,0.00016575,2]
[350650736,1738025444523,-500.0,0.00016575,2]
[350650737,1738025444533,-500.0,0.00016575,2]
[350650738,1738025444543,-500.0,0.00016575,2]
[350650739,1738025444552,-500.0,0.00016575,2]
[350650740,1738025444665,-250.7776976,0.00016575,2]
[350650741,1738025444675,-500.0,0.00016575,2]
[350650742,1738025444684,-500.0,0.00016575,2]
[350650743,1738025444693,-500.0,0.00016575,2]
[350650744,1738025444702,-500.0,0.00016575,2]
[350650745,1738025444711,-500.0,0.00016575,2]
[350650746,1738025444720,-500.0,0.00016575,2]
[350650747,1738025444729,-500.0,0.00016575,2]
[350650748,1738025444739,-500.0,0.00016575,2]
[350650749,1738025444748,-500.0,0.00016575,2]
[350650750,1738025444757,-500.0,0.00016575,2]
[350650751,1738025444766,-500.0,0.00016575,2]
[350650752,1738025444775,-500.0,0.00016575,2]
[350650753,1738025444784,-500.0,0.00016575,2]
[350650754,1738025444796,-1102.13,0.00016575,2]
[350650755,1738025444809,-500.0,0.00016575,2]
[350650756,1738025444818,-500.0,0.00016575,2]
[350650757,1738025444827,-500.0,0.00016575,2]
[350650758,1738025444836,-500.0,0.00016575,2]
[350650759,1738025444847,-500.0,0.00016575,2]
[350650760,1738025444856,-500.0,0.00016575,2]
[350650761,1738025444865,-500.0,0.00016575,2]
[350650762,1738025444874,-500.0,0.00016708,2]
[350650763,1738025444884,-294.41,0.00016712,2]
[350650764,1738025444894,-242.68,0.00016712,2]
[350650765,1738025444903,-191.92,0.00016712,2]
[350650766,1738025444912,-500.0,0.00016712,2]
[350650767,1738025444921,-500.0,0.00016712,2]
[350650768,1738025444931,-500.0,0.00016712,2]
[350650769,1738025444940,-500.0,0.00016712,2]
[350650770,1738025444949,-500.0,0.00016712,2]
[350650771,1738025444958,-639.24,0.00016712,2]
[350650772,1738025444968,-500.0,0.00016712,2]
[350650773,1738025444978,-364.27,0.00016712,2]
[350650774,1738025444987,-500.0,0.00016712,2]
[350650775,1738025444997,-500.0,0.00016712,2]
[350650776,1738025445006,-1102.13,0.00016712,2]
[350650777,1738025445015,-500.0,0.00016712,2]
[350650778,1738025445024,-500.0,0.00016712,2]
[350650779,1738025445034,-500.0,0.00016712,2]
[350650780,1738025445045,-500.0,0.00016712,2]
[350650781,1738025445054,-500.0,0.00016712,2]
[350650782,1738025445064,-500.0,0.00016712,2]
[350650783,1738025445073,-624.07,0.00016848,2]
[350650784,1738025445082,-500.0,0.00016849,2]
[350650785,1738025445091,-500.0,0.00016849,2]
[350650786,1738025445101,-500.0,0.00016849,2]
[350650787,1738025445110,-500.0,0.00016849,2]
[350650788,1738025445120,-500.0,0.00016849,2]
[350650789,1738025445129,-253.22,0.00016849,2]
[350650790,1738025445139,-500.0,0.00016849,2]
[350650791,1738025445148,-1102.13,0.00016849,2]
[350650792,1738025445157,-376.66122085,0.00016849,2]
[350650793,1738025445167,-500.0,0.00016849,2]
[350650794,1738025445176,-500.0,0.00016849,2]
[350650795,1738025445185,-500.0,0.00016849,2]
[350650796,1738025445194,-573.98179781,0.00016849,2]
[350650797,1738025445204,-500.0,0.00016849,2]
[350650798,1738025445213,-594.52926905,0.00016986,2]
[350650799,1738025445222,-500.0,0.00016986,2]
[350650800,1738025445231,-500.0,0.00016986,2]
[350650801,1738025445240,-500.0,0.00016986,2]
[350650802,1738025445250,-500.0,0.00016986,2]
[350650803,1738025445259,-500.0,0.00016986,2]
[350650804,1738025445268,-1102.13,0.00016986,2]
[350650805,1738025445277,-500.0,0.00016986,2]
[350650806,1738025445287,-500.0,0.00016986,2]
[350650807,1738025445298,-500.0,0.00016986,2]
[350650808,1738025445306,-500.0,0.00016986,2]
[350650809,1738025445316,-500.0,0.00017123,2]
[350650810,1738025445325,-500.0,0.00017123,2]
[350650811,1738025445335,-500.0,0.00017123,2]
[350650812,1738025445344,-639.41,0.00017123,2]
[350650813,1738025445353,-500.0,0.00017123,2]
[350650814,1738025445362,-1102.13,0.00017123,2]
[350650815,1738025445371,-500.0,0.00017123,2]
[350650816,1738025445380,-500.0,0.00017123,2]
[350650817,1738025445389,-216.9,0.00017123,2]
[350650818,1738025445398,-500.0,0.00017123,2]
[350650819,1738025445407,-500.0,0.0001726,2]
[350650820,1738025445417,-500.0,0.0001726,2]
[350650821,1738025445426,-500.0,0.0001726,2]
[350650822,1738025445435,-500.0,0.0001726,2]
[350650823,1738025445444,-1102.13,0.0001726,2]
[350650824,1738025445453,-500.0,0.0001726,2]
[350650825,1738025445462,-500.0,0.0001726,2]
[350650826,1738025445471,-500.0,0.0001726,2]
[350650827,1738025445480,-500.0,0.00017397,2]
[350650828,1738025445489,-500.0,0.00017397,2]
[350650829,1738025445498,-329.17,0.00017397,2]
[350650830,1738025445508,-500.0,0.00017397,2]
[350650831,1738025445518,-1102.13,0.00017397,2]
[350650832,1738025445527,-500.0,0.00017397,2]
[350650833,1738025445536,-500.0,0.00017397,2]
[350650834,1738025445547,-500.0,0.00017397,2]
[350650835,1738025445557,-500.0,0.00017534,2]
[350650836,1738025445565,-500.0,0.00017534,2]
[350650837,1738025445574,-281.75194615,0.00017534,2]
[350650838,1738025445583,-1102.13,0.00017534,2]
[350650839,1738025445592,-500.0,0.00017534,2]
[350650840,1738025445603,-500.0,0.00017534,2]
[350650841,1738025445613,-500.0,0.00017534,2]
[350650842,1738025445622,-604.84,0.00017671,2]
[350650843,1738025445631,-500.0,0.00017671,2]
[350650844,1738025445640,-1102.13,0.00017671,2]
[350650846,1738025445649,-500.0,0.00017671,2]
[350650848,1738025445659,-500.0,0.00017671,2]
[350650849,1738025445668,-500.0,0.00017671,2]
[350650850,1738025445677,-500.0,0.00017808,2]
[350650851,1738025445686,-1102.13,0.00017808,2]
[350650852,1738025445696,-500.0,0.00017808,2]
[350650853,1738025445705,-452.71,0.00017808,2]
[350650854,1738025445714,-500.0,0.00017808,2]
[350650855,1738025445723,-439.66,0.00017945,2]
[350650856,1738025445733,-1102.13,0.00017945,2]
[350650857,1738025445742,-500.0,0.00017945,2]
[350650858,1738025445751,-500.0,0.00017945,2]
[350650859,1738025445760,-420.0,0.00017963,2]
[350650860,1738025445769,-1102.13,0.00018082,2]
[350650861,1738025445779,-194.65709247,0.00018082,2]
[350650862,1738025445790,-414.72,0.00018082,2]
[350650863,1738025445801,-1102.13,0.00018219,2]
[350650864,1738025445811,-1102.13,0.00018356,2]
[350650865,1738025445821,-1102.13,0.00018493,2]
[350650866,1738025445830,-155.76,0.000186,2]
[350650867,1738025445840,-1102.13,0.0001863,2]
[350650868,1738025445849,-1102.13,0.00018767,2]
[350650869,1738025445859,-152.66516287,0.00018804,2]
[350650870,1738025445868,-1102.13,0.00018904,2]
[350650871,1738025445877,-500.0,0.00018919,2]
[350650872,1738025445886,-1102.13,0.00019041,2]
[350650873,1738025445896,-1102.13,0.00019178,2]
[350650874,1738025445906,-160.345554,0.00019178,2]
[350650875,1738025445915,-1102.13,0.00019315,2]
[350650876,1738025445925,-1102.13,0.00019452,2]
[350650877,1738025445934,-1102.3334,0.00019589,2]
[350650878,1738025445944,-160.0,0.0002,2]
[350650879,1738025445953,-179.232655,0.00020447,2]
[350650880,1738025445962,-499.0,0.00020547,2]
[350650882,1738025445971,-153.677,0.0002161,2]
[350650884,1738025445980,-536.0,0.00021827,2]
[350650885,1738025445990,-2057.0,0.00021827,2]
[350650886,1738025445998,-247.0,0.00021827,2]
[350650887,1738025446008,-182.531,0.00021827,2]
[350650888,1738025446018,-240.05,0.000219,2]
[350650889,1738025446028,-499.0,0.00021917,4]
[350650890,1738025446037,-300.0,0.00022,9]
[350650891,1738025446048,-554.47355364,0.00022556,2]
[350650892,1738025446058,-10730.97720708,0.00022648,3]
[350650893,1738025446067,-191.03957776,0.00022648,2]
[350650894,1738025446076,-151.0,0.000227,7]
[350650895,1738025446086,-644.7119735,0.0002274,2]
[350650896,1738025446095,-151.0,0.00022743,7]
[350650897,1738025446104,-500.0,0.00022746,8]
[350650898,1738025446113,-440.87917507,0.00022747,2]
[350650899,1738025446122,-3051.26413186,0.00022747,5]
[350650900,1738025446132,-1135.48657611,0.00022747,5]
[350650901,1738025446141,-1953.76733896,0.00022748,61]
[350650904,1738025446281,-500.0,0.00016438,2]
[350650905,1738025446291,-500.0,0.00016438,2]
[350650906,1738025446300,-15471.28941518,0.00022748,61]
[350650907,1738025446311,-837.52,0.00022748,61]
[350650908,1738025446322,-5367.3015465,0.00022748,61]
[350650909,1738025446333,-126195.43151577,0.00022748,61]
[350650914,1738025733725,161.309389,0.00013973,2]
[350650916,1738026439128,-219.37619585,0.00015384,2]
[350650917,1738026439153,-320.94624495,0.00015484,2]
[350650918,1738026442144,-7863.01688929,0.00015484,2]
[350650919,1738026448102,-1130.247,0.00015484,2]
[350650920,1738026452080,-2059.88112841,0.00015484,2]
[350650921,1738026547104,-852.52219332,0.0001533,2]
[350650922,1738026547124,-8880.59150435,0.00015484,2]
[350650923,1738026547144,-155.0294556,0.00015484,2]
[350650924,1738026547287,-363.7035378,0.00015484,2]
[350650925,1738026547308,-13384.82726384,0.00015484,2]
[350650926,1738026556140,-2461.4268,0.00015484,2]
[350650927,1738026561132,-8799.9002,0.00015484,2]
[350650928,1738026562153,-216.35604863,0.00015484,2]
[350650934,1738026580071,161.309389,0.00013973,2]
[350650967,1738026632645,-37.48968753,0.00015484,2]
[350650968,1738026632654,-500.0,0.00016438,2]
[350650969,1738026632663,-493.90380827,0.00016438,2]
[350650970,1738026632673,-321.03659747,0.00016438,2]
[350650971,1738026632682,-501.82662371,0.00016438,2]
[350650972,1738026632691,-542.46709313,0.00016438,2]
[350650973,1738026632701,-198.25231518,0.00016438,2]
[350650974,1738026632710,-501.55696237,0.00016438,2]
[350650975,1738026632719,-500.0,0.00016438,2]
[350650976,1738026632728,-546.359962,0.00016438,2]
[350650977,1738026632738,-500.0,0.00016438,2]
[350650978,1738026632747,-500.0,0.00016438,2]
[350650979,1738026632756,-500.0,0.00016438,2]
[350650980,1738026632765,-500.0,0.00016438,2]
[350650981,1738026632774,-585.66056731,0.00016438,2]
[350650982,1738026632783,-437.82137002,0.00016438,2]
[350650996,1738026640606,-62.17862998,0.00016438,2]
[350650997,1738026640616,-500.0,0.00016438,2]
[350650998,1738026640625,-500.0,0.00016438,2]
[350650999,1738026640634,-500.0,0.00016438,2]
[350651000,1738026640643,-500.0,0.00016438,2]
[350651001,1738026640653,-500.0,0.00016438,2]
[350651002,1738026640662,-500.0,0.00016438,2]
[350651007,1738026640817,-500.0,0.00016438,2]
[350651008,1738026640828,-500.0,0.00016438,2]
[350651009,1738026640838,-501.72085058,0.00016438,2]
[350651010,1738026640847,-356.67732934,0.00016438,2]
[350651011,1738026640856,-500.0,0.00016438,2]
[350651012,1738026640866,-500.0,0.00016438,2]
[350651013,1738026640876,-504.97231072,0.00016438,2]
[350651014,1738026640886,-500.0,0.00016438,2]
[350651015,1738026640895,-500.0,0.00016438,2]
[350651016,1738026640905,-500.0,0.00016438,2]
[350651017,1738026640914,-504.34253355,0.00016438,2]
[350651018,1738026640924,-500.0,0.00016438,2]
[350651019,1738026640933,-500.0,0.00016438,2]
[350651020,1738026640943,-500.0,0.00016438,2]
[350651021,1738026640952,-500.0,0.00016438,2]
[350651022,1738026640961,-500.0,0.00016438,2]
[350651023,1738026640970,-500.0,0.00016438,2]
[350651024,1738026640979,-500.0,0.00016438,2]
[350651025,1738026640988,-500.0,0.00016438,2]
[350651026,1738026640998,-500.0,0.00016438,2]
[350651027,1738026641007,-500.0,0.00016438,2]
[350651028,1738026641017,-500.0,0.00016438,2]
[350651029,1738026641026,-500.0,0.00016438,2]
[350651030,1738026641035,-500.0,0.00016438,2]
[350651031,1738026641044,-500.0,0.00016438,2]
[350651032,1738026641053,-500.0,0.00016438,2]
[350651033,1738026641063,-500.0,0.00016438,2]
[350651034,1738026641073,-279.20898483,0.00016438,2]
[350651035,1738026641082,-500.0,0.00016438,2]
[350651036,1738026641092,-500.0,0.00016438,2]
[350651037,1738026641101,-500.0,0.00016438,2]
[350651038,1738026641110,-500.0,0.00016438,2]
[350651039,1738026641120,-500.0,0.00016438,2]
[350651040,1738026641129,-501.94748031,0.00016438,2]
[350651041,1738026641139,-500.0,0.00016438,2]
[350651042,1738026641148,-568.5,0.00016438,2]
[350651043,1738026641158,-500.0,0.00016438,2]
[350651044,1738026641167,-500.0,0.00016575,2]
[350651045,1738026641177,-500.0,0.00016575,2]
[350651046,1738026641187,-500.0,0.00016575,2]
[350651047,1738026641198,-522.74,0.00016712,2]
[350651048,1738026641208,-395.37,0.00016712,2]
[350651049,1738026641217,-500.0,0.00016712,2]
[350651050,1738026641227,-500.0,0.00016849,2]
[350651051,1738026641236,-500.0,0.00016986,2]
[350651052,1738026641247,-500.0,0.00017123,2]
[350651053,1738026641256,-389.17999999,0.0001726,2]
[350651054,1738026641266,-500.0,0.00019178,7]
[350651055,1738026641277,-160.345554,0.00019178,2]
[350651056,1738026641287,-1043.8407122,0.00019271,2]
[350651057,1738026641296,-3087.0,0.0002,2]
[350651058,1738026641306,-161.309389,0.00020807,2]
[350651059,1738026641316,-3087.0,0.000216,4]
[350651060,1738026641326,-156.006,0.0002161,2]
[350651061,1738026641335,-300.0,0.00022,9]
[350651062,1738026641344,-216.05,0.000221,2]
[350651063,1738026641353,-308.61542255,0.00022743,2]
[350651064,1738026641363,-174.45822167,0.00022743,2]
[350651065,1738026641372,-500.0,0.00022743,2]
[350651066,1738026641381,-500.0,0.00022743,2]
[350651067,1738026641390,-500.0,0.00022743,2]
[350651068,1738026641400,-500.0,0.00022743,2]
[350651069,1738026641409,-500.0,0.00022743,2]
[350651070,1738026641419,-500.0,0.00022743,2]
[350651071,1738026641427,-500.0,0.00022743,2]
[350651072,1738026641436,-500.0,0.00022743,2]
[350651073,1738026641445,-501.59740139,0.00022743,2]
[350651074,1738026641455,-500.0,0.00022743,2]
[350651075,1738026641464,-473.75271524,0.00022743,2]
[350651076,1738026641473,-500.0,0.00022743,2]
[350651077,1738026641483,-500.0,0.00022743,2]
[350651078,1738026641492,-500.0,0.00022743,2]
[350651079,1738026641503,-500.0,0.00022743,2]
[350651080,1738026641512,-500.0,0.00022743,2]
[350651081,1738026641522,-500.0,0.00022743,2]
[350651082,1738026641532,-500.0,0.00022743,2]
[350651083,1738026641542,-500.0,0.00022743,2]
[350651084,1738026641552,-500.0,0.00022743,2]
[350651085,1738026641561,-500.0,0.00022743,2]
[350651086,1738026641570,-500.0,0.00022743,2]
[350651087,1738026641579,-648.9574269,0.00022743,2]
[350651088,1738026641589,-500.0,0.00022743,2]
[350651089,1738026641598,-500.0,0.00022743,2]
[350651090,1738026641608,-500.0,0.00022743,2]
[350651091,1738026641618,-500.0,0.00022743,2]
[350651092,1738026641627,-500.0,0.00022743,2]
[350651093,1738026641637,-500.0,0.00022743,2]
[350651094,1738026641646,-500.0,0.00022743,2]
[350651095,1738026641655,-500.0,0.00022743,2]
[350651096,1738026641664,-500.0,0.00022743,2]
[350651097,1738026641674,-500.0,0.00022743,2]
[350651098,1738026641684,-500.0,0.00022743,2]
[350651099,1738026641693,-500.0,0.00022743,2]
[350651100,1738026641702,-499.0,0.00022743,2]
[350651101,1738026641712,-4303.77347202,0.00022744,5]
[350651102,1738026641721,-2126.86820721,0.00022744,5]
[350651103,1738026641731,-49177.74337491,0.00022744,61]
[350651104,1738026641793,-203690.92119,0.00022744,61]
[350651112,1738026643493,-86853.72036167,0.00022744,61]
[350651135,1738026646576,-8910.48958633,0.00022744,61]
[350651136,1738026715371,3149.15369641,0.000171,14]
[350651168,1738027629144,-4626.89024114,0.00016175,2]
[350651169,1738027629165,-158.10265924,0.00016175,2]
[350651170,1738027629185,-305.13298768,0.00016338,2]
[350651171,1738027629320,-238.55888528,0.00016428,2]
[350651172,1738027630124,-619.39769702,0.00016428,2]
[350651173,1738027630146,-509.73297122,0.00016438,2]
[350651174,1738027630169,-500.0,0.00016438,2]
[350651175,1738027630191,-500.0,0.00016438,2]
[350651176,1738027630212,-500.0,0.00016438,2]
[350651177,1738027630234,-500.0,0.00016438,2]
[350651178,1738027630256,-500.0,0.00016572,2]
[350651179,1738027630279,-500.0,0.00016572,2]
[350651180,1738027630301,-615.58780601,0.00016572,2]
[350651181,1738027630327,-621.53,0.00016572,2]
[350651182,1738027630351,-500.0,0.00016572,2]
[350651183,1738027630375,-500.0,0.00016572,2]
[350651184,1738027630402,-500.0,0.00016572,2]
[350651185,1738027630426,-500.0,0.00016572,2]
[350651186,1738027630450,-500.0,0.00016572,2]
[350651187,1738027630474,-500.0,0.00016572,2]
[350651188,1738027630497,-537.61,0.00016572,2]
[350651189,1738027630519,-500.0,0.00016572,2]
[350651190,1738027630544,-346.95938982,0.00016572,2]
[350651191,1738027634100,-153.04061018,0.00016572,2]
[350651192,1738027634124,-104.94006143,0.00016572,2]
[350651194,1738027638099,-158.23458,0.00016473,2]
[350651195,1738027639390,161.309389,0.00013973,2]
[350651198,1738027720955,17914.07825246,0.00013,2]
[350651199,1738027720989,20000.0,0.00013,2]
[350651200,1738027721022,2085.92174754,0.00013,2]
[350651202,1738027737028,6557.5807179,0.0002072,120]
[350651203,1738027737052,1200.0,0.0002072,120]
[350651204,1738027737080,21909.4192821,0.0002072,120]
[350651205,1738027749164,-1798.22819638,0.00015788,2]
[350651206,1738027760124,-196.73310932,0.00015788,2]
[350651207,1738027760145,-34.81273657,0.00016571,2]
[350651293,1738027832972,-168.56859853,0.00016397,2]
[350651296,1738027832982,-300.0,0.00016571,2]
[350651298,1738027832992,-395.05993857,0.00016572,2]
[350651299,1738027833001,-500.0,0.00016572,2]
[350651302,1738027833011,-500.0,0.00016572,2]
[350651304,1738027833021,-500.0,0.00016572,2]
[350651306,1738027833030,-641.33,0.00016572,2]
[350651308,1738027833042,-500.0,0.00016572,2]
[350651310,1738027833052,-466.33581151,0.00016572,2]
[350651312,1738027833061,-500.0,0.00016572,2]
[350651314,1738027833071,-500.0,0.00016572,2]
[350651316,1738027833081,-500.0,0.00016572,2]
[350651318,1738027833091,-500.0,0.00016572,2]
[350651320,1738027833101,-500.0,0.00016572,2]
[350651322,1738027833111,-598.0,0.00016572,2]
[350651324,1738027833122,-500.0,0.00016572,2]
[350651326,1738027833132,-500.0,0.00016572,2]
[350651328,1738027833143,-500.0,0.00016572,2]
[350651330,1738027833154,-470.57650685,0.00016572,2]
[350651332,1738027833164,-500.0,0.00016572,2]
[350651334,1738027833175,-500.0,0.00016572,2]
[350651336,1738027833185,-500.0,0.00016572,2]
[350651338,1738027833196,-571.51656457,0.00016572,2]
[350651340,1738027833206,-220.77147819,0.00016573,2]
[350651342,1738027833215,-500.0,0.00016573,2]
[350651344,1738027833226,-500.0,0.00016573,2]
[350651346,1738027833236,-525.22,0.00016573,2]
[350651348,1738027833246,-500.0,0.00016573,2]
[350651350,1738027833256,-500.0,0.00016573,2]
[350651352,1738027833267,-551.82,0.00016573,2]
[350651354,1738027833277,-500.0,0.00016573,2]
[350651356,1738027833287,-500.0,0.00016573,2]
[350651359,1738027833303,-556.19,0.00016573,2]
[350651361,1738027833314,-500.0,0.00016573,2]
[350651363,1738027833324,-500.0,0.00016573,2]
[350651364,1738027833333,-500.0,0.00016573,2]
[350651367,1738027833344,-526.80926124,0.00016573,2]
[350651368,1738027833354,-500.0,0.00016573,2]
[350651370,1738027833364,-504.17164218,0.00016573,2]
[350651372,1738027833374,-500.0,0.00016573,2]
[350651374,1738027833383,-50.17864443,0.00016573,2]
[350651603,1738027838694,-449.82135557,0.00016573,2]
[350651605,1738027838704,-496.87034341,0.00016573,2]
[350651617,1738027838828,-9.14108085,0.00016573,2]
[350651619,1738027838838,-500.0,0.00016573,2]
[350651621,1738027838847,-500.0,0.00016573,2]
[350651622,1738027838856,-267.14030085,0.00016573,2]
[350651674,1738027840778,-232.85969915,0.00016573,2]
[350651676,1738027840788,-500.0,0.00016573,2]
[350651678,1738027840798,-286.14030085,0.00016573,2]
[350651686,1738027840867,-28.66451907,0.00016573,2]
[350651689,1738027840878,-185.19518008,0.00016573,2]
[350651691,1738027840887,-237.33684826,0.00016573,2]
[350651693,1738027840898,-262.66315174,0.00016573,2]
[350651695,1738027840907,-500.0,0.00016573,2]
[350651697,1738027840916,-501.52441199,0.00016573,2]
[350651698,1738027840925,-500.0,0.00016573,2]
[350651699,1738027840934,-334.83589194,0.00016573,2]
[350651751,1738027843775,-165.16410806,0.00016573,2]
[350651752,1738027843785,-503.10078577,0.00016573,2]
[350651753,1738027843794,-500.0,0.00016573,2]
[350651754,1738027843804,-500.0,0.00016573,2]
[350651755,1738027843813,-500.0,0.00016573,2]
[350651756,1738027843822,-501.27456007,0.00016573,2]
[350651757,1738027843832,-197.99552245,0.00016609,2]
[350651758,1738027843841,-236.89126819,0.00016709,2]
[350651760,1738027843850,-500.0,0.00016709,2]
[350651761,1738027843859,-500.0,0.00016709,2]
[350651762,1738027843868,-500.0,0.00016709,2]
[350651763,1738027843877,-500.0,0.00016709,2]
[350651764,1738027843886,-500.0,0.00016709,2]
[350651765,1738027843895,-500.0,0.00016709,2]
[350651766,1738027843904,-411.06,0.00016709,2]
[350651767,1738027843913,-500.0,0.00016709,2]
[350651768,1738027843922,-515.05,0.0001671,2]
[350651769,1738027843932,-500.0,0.00016846,2]
[350651770,1738027843940,-500.0,0.00016846,2]
[350651771,1738027843949,-500.0,0.00016846,2]
[350651772,1738027843959,-500.0,0.00016846,2]
[350651773,1738027843967,-500.0,0.00016846,2]
[350651774,1738027843976,-500.0,0.00016846,2]
[350651775,1738027843985,-1.59062335,0.00016846,2]
[350651808,1738027846784,-498.40937665,0.00016846,2]
[350651810,1738027846794,-534.47932906,0.00016848,2]
[350651812,1738027846803,-500.80000004,0.00016848,2]
[350651814,1738027846812,-184.79321876,0.00016848,2]
[350651816,1738027846822,-541.23217981,0.00016983,2]
[350651818,1738027846831,-500.0,0.00016983,2]
[350651820,1738027846839,-500.0,0.00016983,2]
[350651822,1738027846849,-500.0,0.00016983,2]
[350651824,1738027846858,-500.0,0.00016983,2]
[350651826,1738027846867,-500.0,0.00016983,2]
[350651828,1738027846877,-500.0,0.00016983,2]
[350651830,1738027846886,-500.0,0.0001712,2]
[350651832,1738027846895,-500.0,0.0001712,2]
[350651834,1738027846904,-183.14,0.0001712,2]
[350651836,1738027846914,-500.0,0.0001712,2]
[350651838,1738027846922,-500.0,0.0001712,2]
[350651840,1738027846933,-500.0,0.0001712,2]
[350651842,1738027846942,-500.0,0.00017257,2]
[350651844,1738027846951,-500.0,0.00017257,2]
[350651846,1738027846960,-302.96,0.00017257,2]
[350651848,1738027846969,-500.0,0.00017257,2]
[350651850,1738027846979,-500.0,0.00017257,2]
[350651852,1738027846988,-371.68,0.00017394,2]
[350651854,1738027846997,-151.37,0.00017394,2]
[350651856,1738027847006,-500.0,0.00017394,2]
[350651858,1738027847015,-500.0,0.00017394,2]
[350651860,1738027847024,-197.99552245,0.00017471,2]
[350651862,1738027847033,-500.0,0.00017531,2]
[350651864,1738027847042,-275.94105884,0.00017531,2]
[350651866,1738027847052,-500.0,0.00017668,2]